bitfinex/quotes_BTCUSD_20250826
["timestamp","ask_amount","ask_price","bid_price","bid_amount"]
[1756224086806,0.93065182,109930.0,109920.0,4e-05]
[1756224087436,1.36434384,109930.0,109920.0,4e-05]
[1756224087657,1.45578913,109930.0,109920.0,4e-05]
[1756224088071,2.03137702,109930.0,109920.0,4e-05]
[1756224088284,2.05087265,109930.0,109920.0,4e-05]
[1756224089333,1.49050378,109930.0,109920.0,4e-05]
[1756224090051,1.33338378,109930.0,109920.0,4e-05]
[1756224090262,1.49050378,109930.0,109920.0,4e-05]
[1756224090905,1.39905849,109930.0,109920.0,4e-05]
[1756224091354,1.24193849,109930.0,109920.0,4e-05]
[1756224091563,1.39695849,109930.0,109920.0,0.00538]
[1756224091776,1.39905849,109930.0,109920.0,0.00538]
[1756224091988,1.24193849,109930.0,109920.0,0.00538]
[1756224092226,1.39905849,109930.0,109920.0,0.00538]
[1756224092462,0.93236491,109930.0,109920.0,0.00538]
[1756224092691,1.49050378,109930.0,109920.0,0.00538]
[1756224092924,1.39905849,109930.0,109920.0,0.00538]
[1756224094215,1.39905849,109930.0,109920.0,4e-05]
[1756224094634,1.24193849,109930.0,109920.0,4e-05]
[1756224094851,1.39905849,109930.0,109920.0,4e-05]
[1756224095060,1.49050378,109930.0,109920.0,4e-05]
[1756224095873,1.49050378,109930.0,109920.0,0.00214]
[1756224096073,1.49050378,109930.0,109920.0,4e-05]
[1756224098318,1.39905849,109930.0,109920.0,0.00297]
[1756224098537,1.39905849,109930.0,109920.0,4e-05]
[1756224098973,1.13092745,109930.0,109920.0,0.00499]
[1756224099381,0.21329295,109930.0,109920.0,0.00726438]
[1756224099593,0.18593395,109930.0,109920.0,0.18921488]
[1756224099803,0.18593395,109930.0,109920.0,0.1869405]
[1756224100038,0.18493395,109930.0,109920.0,0.1869405]
[1756224100494,0.18193395,109930.0,109920.0,0.1869405]
[1756224101213,0.78166414,109940.0,109930.0,0.18193395]
[1756224101431,0.18193395,109930.0,109920.0,0.3391105]
[1756224101627,1.12166414,109940.0,109930.0,0.00202]
[1756224101990,1.12166414,109940.0,109930.0,0.18688395]
[1756224102163,1.12166414,109940.0,109930.0,0.00495]
[1756224102164,1.10742728,109940.0,109930.0,0.00495]
[1756224102385,1.10742728,109940.0,109930.0,0.18688395]
[1756224102638,1.10742728,109940.0,109930.0,0.00495]
[1756224103581,0.58549487,109940.0,109930.0,0.18688395]
[1756224103801,0.19578325,109950.0,109930.0,0.25940355]
[1756224104028,0.1819174,109940.0,109930.0,0.25647355]
[1756224104284,0.74005627,109940.0,109930.0,0.00202]
[1756224104484,0.74005627,109940.0,109930.0,0.16203]
[1756224105114,0.74005627,109940.0,109930.0,0.16403]
[1756224105305,0.1819174,109940.0,109930.0,0.34596395]
[1756224105599,0.74005627,109940.0,109930.0,0.16803]
[1756224106024,0.74005627,109940.0,109930.0,0.16703]
[1756224106237,0.74005627,109940.0,109930.0,0.16903]
[1756224107181,0.1819174,109940.0,109930.0,0.16903]
[1756224107396,0.74005627,109940.0,109930.0,0.35096395]
[1756224107591,0.1819174,109940.0,109930.0,0.35096395]
[1756224107837,0.74005627,109940.0,109930.0,0.35096395]
[1756224108999,0.77651485,109950.0,109940.0,0.1819174]
[1756224109216,0.77651485,109950.0,109940.0,0.1839374]
[1756224109444,0.77651485,109950.0,109940.0,0.1868674]
[1756224110087,0.77651485,109950.0,109940.0,0.00495]
[1756224110305,0.77651485,109950.0,109940.0,0.1868674]
[1756224110528,0.20928094,109950.0,109940.0,0.1868674]
[1756224110750,0.75430614,109960.0,109940.0,0.1868674]
[1756224110984,0.18190086,109950.0,109940.0,0.3410174]
[1756224111196,0.18190086,109950.0,109940.0,0.3430174]
[1756224111411,0.18190086,109950.0,109940.0,0.3440174]
[1756224111627,0.18190086,109950.0,109940.0,0.3469474]
[1756224111869,0.18190086,109950.0,109940.0,0.1898674]
[1756224112099,0.74003973,109950.0,109940.0,0.16499]
[1756224112545,0.18190086,109950.0,109940.0,0.16499]
[1756224112762,0.74003973,109950.0,109940.0,0.16499]
[1756224113011,0.74003973,109950.0,109940.0,0.3469074]
[1756224114359,0.74003973,109950.0,109940.0,0.1898674]
[1756224114585,0.74003973,109950.0,109940.0,0.3469074]
[1756224115017,0.18190086,109950.0,109940.0,0.00795]
[1756224115224,0.74003973,109950.0,109940.0,0.16499]
[1756224115423,0.74003973,109950.0,109940.0,0.3469074]
[1756224117445,0.74003973,109950.0,109940.0,0.16499]
[1756224117712,0.74003973,109950.0,109940.0,0.00795]
[1756224117916,0.74201973,109950.0,109940.0,0.16499]
[1756224118623,0.74003973,109950.0,109940.0,0.3469074]
[1756224118835,0.18388086,109950.0,109940.0,0.16499]
[1756224119045,0.74201973,109950.0,109940.0,0.16206]
[1756224119276,0.74003973,109950.0,109940.0,0.3469074]
[1756224119686,0.744798,109950.0,109940.0,0.3469074]
[1756224119931,0.18665913,109950.0,109940.0,0.3469074]
[1756224120138,0.744798,109950.0,109940.0,0.3469074]
[1756224120379,0.56289714,109950.0,109940.0,0.3469074]
[1756224120657,0.00475827,109950.0,109940.0,0.43836942]
[1756224120880,4.77e-05,109960.0,109950.0,0.18190086]
[1756224121104,4.77e-05,109960.0,109950.0,0.90695135]
[1756224121333,4.77e-05,109960.0,109950.0,0.90897135]
[1756224121555,4.77e-05,109960.0,109950.0,1.40597135]
[1756224122014,4.77e-05,109960.0,109950.0,1.24897135]
[1756224122230,4.77e-05,109960.0,109950.0,1.40597135]
[1756224122463,4.77e-05,109960.0,109950.0,1.41527646]
[1756224122904,4.77e-05,109960.0,109950.0,0.85713759]
[1756224123120,4.77e-05,109960.0,109950.0,1.41527646]
[1756224124037,0.53231126,109990.0,109970.0,0.18185145]
[1756224124251,0.71422163,109990.0,109980.0,0.157]
[1756224124491,0.71620163,109990.0,109980.0,0.157]
[1756224124708,0.74202924,109990.0,109980.0,0.15902]
[1756224124926,0.18185124,109980.0,109970.0,0.09146202]
[1756224125148,0.74198011,109980.0,109970.0,0.24854202]
[1756224126041,0.18186778,109970.0,109960.0,0.254745]
[1756224126259,0.18186778,109970.0,109960.0,0.07289]
[1756224126492,0.74000665,109970.0,109960.0,0.41387432]
[1756224126719,0.55813887,109970.0,109960.0,0.41387432]
[1756224127296,0.18185124,109980.0,109960.0,0.41387432]
[1756224127508,0.18186778,109970.0,109960.0,0.41094432]
[1756224127723,0.18186778,109970.0,109960.0,0.25904432]
[1756224127931,0.18186778,109970.0,109960.0,0.41612432]
[1756224128144,0.55813887,109970.0,109960.0,0.41612432]
[1756224128605,0.20137054,109990.0,109980.0,0.18185124]
[1756224128835,0.76148941,109990.0,109980.0,0.33889124]
[1756224129050,0.56855503,109990.0,109980.0,0.34409124]
[1756224129270,0.75236974,109990.0,109980.0,0.34409124]
[1756224129937,0.18185124,109980.0,109960.0,0.35758055]
[1756224130182,0.18185124,109980.0,109970.0,0.4304498]
[1756224130394,0.18383124,109980.0,109970.0,0.33898778]
[1756224130619,0.18186778,109970.0,109960.0,0.35558055]
[1756224130841,0.18385778,109970.0,109960.0,0.42505853]
[1756224131083,0.18185124,109980.0,109960.0,0.42605853]
[1756224131286,0.18185124,109980.0,109970.0,0.18732112]
[1756224131561,0.55813887,109980.0,109970.0,0.18504778]
[1756224131808,0.55813887,109980.0,109970.0,0.18706778]
[1756224132048,0.74197011,109980.0,109970.0,0.18706778]
[1756224132222,0.74197011,109980.0,109970.0,0.18186778]
[1756224133128,0.18383124,109980.0,109970.0,0.18186778]
[1756224133345,0.74197011,109980.0,109970.0,0.18186778]
[1756224133559,0.18186778,109970.0,109960.0,0.26293853]
[1756224133769,0.74000665,109970.0,109960.0,0.42193853]
[1756224133984,0.74198665,109970.0,109960.0,0.41284432]
[1756224134196,0.74198665,109970.0,109960.0,0.41486432]
[1756224134331,0.74198665,109970.0,109960.0,0.41804432]
[1756224134548,0.74198665,109970.0,109960.0,0.41604432]
[1756224134759,0.74198665,109970.0,109960.0,0.41804432]
[1756224134955,0.74198665,109970.0,109960.0,0.07196]
[1756224135166,0.75450892,109970.0,109960.0,0.23092]
[1756224135393,0.74000665,109970.0,109960.0,0.23612]
[1756224135597,0.74199665,109970.0,109960.0,0.23092]
[1756224135799,0.76934165,109970.0,109960.0,0.23092]
[1756224136001,0.76934165,109970.0,109960.0,0.23192]
[1756224136234,0.76934165,109970.0,109960.0,0.22992]
[1756224136445,0.76934165,109970.0,109960.0,0.22892]
[1756224137266,0.18190086,109950.0,109940.0,0.06996]
[1756224137481,0.74003973,109950.0,109940.0,0.22884]
[1756224137692,0.74202973,109950.0,109940.0,0.22884]
[1756224138300,0.74202973,109950.0,109940.0,0.4127774]
[1756224138507,0.74202973,109950.0,109940.0,0.4108051]
[1756224138705,0.74202973,109950.0,109940.0,0.4118051]
[1756224139022,0.74202973,109950.0,109940.0,0.2318877]
[1756224139144,0.74202973,109950.0,109940.0,0.4190051]
[1756224140473,0.74003973,109950.0,109940.0,0.4190051]
[1756224140924,0.83347502,109950.0,109940.0,0.2318877]
[1756224141155,0.74202973,109950.0,109940.0,0.2318877]
[1756224143094,0.76937973,109950.0,109940.0,0.2318877]
[1756224145392,0.76937973,109950.0,109940.0,0.2314477]
[1756224145605,0.76738973,109950.0,109940.0,0.4185651]
[1756224145819,0.76936973,109950.0,109940.0,0.2314477]
[1756224146253,0.83835112,109950.0,109940.0,0.0030477]
[1756224146468,0.79119189,109950.0,109940.0,0.1615277]
[1756224146711,0.94971189,109950.0,109940.0,0.0030477]
[1756224147556,0.94971189,109950.0,109940.0,4.77e-05]
[1756224147740,0.99891472,109950.0,109940.0,4.77e-05]
[1756224148001,1.10782576,109950.0,109940.0,4.77e-05]
[1756224148221,1.13210179,109950.0,109940.0,4.77e-05]
[1756224148436,1.10782576,109950.0,109940.0,4.77e-05]
[1756224148652,0.41544292,109950.0,109940.0,4.77e-05]
[1756224148837,1.13202179,109950.0,109940.0,4.77e-05]
[1756224149309,1.10774576,109950.0,109940.0,4.77e-05]
[1756224152250,0.95406403,109950.0,109940.0,4.77e-05]
[1756224152633,1.11234403,109950.0,109940.0,4.77e-05]
[1756224153258,0.39592516,109950.0,109940.0,4.77e-05]
[1756224153483,1.0637112,109950.0,109940.0,4.77e-05]
[1756224154131,0.50557233,109950.0,109940.0,4.77e-05]
[1756224154383,1.0637112,109950.0,109940.0,4.77e-05]
[1756224155596,1.0660612,109950.0,109940.0,4.77e-05]
[1756224155746,1.49750649,109950.0,109940.0,4.77e-05]
[1756224155953,1.49750649,109950.0,109920.0,4e-05]
[1756224155954,0.52193395,109930.0,109920.0,4e-05]
[1756224156175,1.907356,109930.0,109920.0,4e-05]
[1756224156400,1.75344594,109930.0,109920.0,4e-05]
[1756224156570,2.00100123,109930.0,109920.0,4e-05]
[1756224156772,2.02836123,109930.0,109920.0,4e-05]
[1756224156946,1.32349181,109930.0,109920.0,4e-05]
[1756224157146,1.48273181,109930.0,109920.0,4e-05]
[1756224157353,1.46328958,109930.0,109920.0,4e-05]
[1756224157550,1.46428958,109930.0,109920.0,4e-05]
[1756224157984,2.05931453,109930.0,109920.0,4e-05]
[1756224158222,2.05935453,109930.0,109920.0,4e-05]
[1756224158430,1.90107453,109930.0,109920.0,4e-05]
[1756224158639,0.6911815,109930.0,109920.0,4e-05]
[1756224158857,0.82989248,109930.0,109920.0,0.00518]
[1756224159059,1.37057429,109930.0,109920.0,4e-05]
[1756224159490,1.39000897,109930.0,109920.0,4e-05]
[1756224160340,1.39000897,109930.0,109920.0,0.00203]
[1756224160703,1.48145426,109930.0,109920.0,4e-05]
[1756224160887,1.48145426,109930.0,109920.0,0.00203]
[1756224161243,1.48145426,109930.0,109920.0,0.00518]
[1756224161871,1.48145426,109930.0,109920.0,4e-05]
[1756224163081,1.48379426,109930.0,109920.0,4e-05]
[1756224164246,1.48145426,109930.0,109920.0,4e-05]
[1756224164680,1.48145426,109930.0,109920.0,0.00203]
[1756224164819,1.48145426,109930.0,109920.0,4e-05]
[1756224165290,1.32313426,109930.0,109920.0,4e-05]
[1756224165494,1.48125426,109930.0,109920.0,4e-05]
[1756224166269,1.50660267,109930.0,109920.0,4e-05]
[1756224166464,1.50660358,109930.0,109920.0,4e-05]
[1756224166870,1.50894358,109930.0,109920.0,4e-05]
[1756224167078,1.53321961,109930.0,109920.0,4e-05]
[1756224169980,1.53087961,109930.0,109920.0,4e-05]
[1756224170140,1.56558766,109930.0,109920.0,4e-05]
[1756224170338,2.14751597,109930.0,109920.0,4e-05]
[1756224170542,2.12323994,109930.0,109920.0,4e-05]
[1756224170740,0.8465022,109930.0,109920.0,4e-05]
[1756224170963,1.40464107,109930.0,109920.0,4e-05]
[1756224171157,1.56260107,109930.0,109920.0,4e-05]
[1756224171542,1.40698107,109930.0,109920.0,4e-05]
[1756224171723,1.56981934,109930.0,109920.0,4e-05]
[1756224171863,1.32029405,109930.0,109920.0,4e-05]
[1756224172072,1.46969363,109930.0,109920.0,4e-05]
[1756224172277,1.47603505,109930.0,109920.0,4e-05]
[1756224172495,0.91591618,109930.0,109920.0,0.00518]
[1756224172694,1.47401505,109930.0,109920.0,0.00518]
[1756224172899,1.49202512,109930.0,109920.0,0.00518]
[1756224173106,1.46767363,109930.0,109920.0,0.00518]
[1756224173315,1.47401662,109930.0,109920.0,0.00518]
[1756224173470,1.49203044,109930.0,109920.0,0.00518]
[1756224173667,1.50035332,109930.0,109920.0,0.00518]
[1756224174076,0.91587764,109930.0,109920.0,0.00518]
[1756224174300,1.47401651,109930.0,109920.0,0.00518]
[1756224175127,1.29852749,109930.0,109920.0,0.00518]
[1756224175342,1.45762982,109930.0,109920.0,0.00518]
[1756224175557,1.31659497,109930.0,109920.0,0.00518]
[1756224175772,1.47451497,109930.0,109920.0,0.00518]
[1756224176213,1.45649218,109930.0,109920.0,0.00518]
[1756224176880,1.45847218,109930.0,109920.0,4e-05]
[1756224177145,1.49984551,109930.0,109920.0,4e-05]
[1756224177363,1.55074758,109930.0,109920.0,4e-05]
[1756224178210,1.51837953,109930.0,109920.0,4e-05]
[1756224178417,1.51602953,109930.0,109920.0,4e-05]
[1756224178872,1.4746562,109930.0,109920.0,4e-05]
[1756224181423,1.46989793,109930.0,109920.0,4e-05]
[1756224181632,0.91175906,109930.0,109920.0,0.00518]
[1756224181874,0.75185906,109930.0,109920.0,0.00518]
[1756224182089,0.66039704,109930.0,109920.0,0.00518]
[1756224182304,0.82007426,109930.0,109920.0,0.00518]
[1756224182751,0.48007426,109930.0,109920.0,0.00518]
[1756224183148,0.46314911,109930.0,109920.0,0.00518]
[1756224183449,0.24361573,109930.0,109920.0,0.00745438]
[1756224183708,0.23423628,109930.0,109920.0,0.1871305]
[1756224183905,0.20136863,109930.0,109920.0,0.1871305]
[1756224184111,0.02790765,109930.0,109920.0,0.1871305]
[1756224184323,0.20136863,109930.0,109920.0,0.1871305]
[1756224184545,0.01943468,109930.0,109920.0,0.27859252]
[1756224184767,0.37366406,109950.0,109930.0,0.18193395]
[1756224184988,0.24353226,109950.0,109930.0,0.34005395]
[1756224185214,0.24353226,109950.0,109940.0,0.1870574]
[1756224185441,0.21912718,109950.0,109940.0,0.1870574]
[1756224185894,0.02813128,109950.0,109940.0,0.1870574]
[1756224186122,0.21003214,109950.0,109940.0,0.1870574]
[1756224186335,0.02813128,109950.0,109940.0,0.1870574]
[1756224186548,0.01965977,109950.0,109940.0,0.1870574]
[1756224186992,0.00014308,109950.0,109940.0,0.83665829]
[1756224187628,0.00014308,109950.0,109940.0,0.84590262]
[1756224187845,0.00014308,109950.0,109940.0,0.99673829]
[1756224188468,0.00014308,109950.0,109940.0,0.43859942]
[1756224188682,0.00014308,109950.0,109940.0,0.4479773]
[1756224189103,0.00014308,109950.0,109940.0,0.43859942]
[1756224189337,0.00014308,109950.0,109940.0,0.43959942]
[1756224189975,0.00014308,109950.0,109940.0,0.83965829]
[1756224190216,0.00014308,109950.0,109940.0,0.99777829]
[1756224190642,0.00014308,109950.0,109940.0,0.43963942]
[1756224191507,0.00014308,109950.0,109940.0,0.43951942]
[1756224192348,0.18204394,109950.0,109940.0,0.43951942]
[1756224193381,0.18204394,109950.0,109940.0,0.25760202]
[1756224193788,0.74018281,109950.0,109940.0,0.16602]
[1756224193991,0.74018281,109950.0,109940.0,0.00814]
[1756224194204,0.5537041,109950.0,109940.0,0.16602]
[1756224194348,0.73560496,109950.0,109940.0,0.16602]
[1756224194556,0.73758496,109950.0,109940.0,0.00814]
[1756224194769,0.18190086,109950.0,109940.0,0.16602]
[1756224194976,0.74201973,109950.0,109940.0,0.16602]
[1756224195204,0.74201973,109950.0,109940.0,0.16088]
[1756224195610,0.74003973,109950.0,109940.0,0.16609]
[1756224195813,0.18190086,109950.0,109940.0,0.3480074]
[1756224196685,0.18188542,109960.0,109940.0,0.3480074]
[1756224196904,0.18193312,109960.0,109950.0,0.18498086]
[1756224197114,0.18193312,109960.0,109950.0,0.18711086]
[1756224197552,0.18193312,109960.0,109950.0,0.00521]
[1756224197762,0.18193312,109960.0,109950.0,0.00748376]
[1756224197941,0.18193312,109960.0,109950.0,0.18938462]
[1756224198098,0.18193312,109960.0,109950.0,0.18711086]
[1756224198935,0.18193312,109960.0,109950.0,0.00521]
[1756224199139,0.18391312,109960.0,109950.0,0.00748376]
[1756224199353,0.18193312,109960.0,109950.0,0.34730462]
[1756224199490,4.77e-05,109960.0,109950.0,0.34503086]
[1756224199701,4.77e-05,109960.0,109950.0,0.99463175]
[1756224199934,4.77e-05,109960.0,109950.0,1.06459175]
[1756224201061,4.77e-05,109960.0,109950.0,1.06659175]
[1756224201908,4.77e-05,109960.0,109950.0,1.06759175]
[1756224204671,4.77e-05,109960.0,109950.0,1.06739175]
[1756224204916,4.77e-05,109960.0,109950.0,0.35153288]
[1756224205170,4.77e-05,109960.0,109950.0,0.50921288]
[1756224208760,0.18193202,109960.0,109950.0,0.32707202]
[1756224208967,0.74205089,109960.0,109950.0,0.50897288]
[1756224209199,0.18391202,109960.0,109950.0,0.50897288]
[1756224209404,0.74205089,109960.0,109950.0,0.50897288]
[1756224210036,0.18391202,109960.0,109950.0,0.32707202]
[1756224210426,0.74205089,109960.0,109950.0,0.23253]
[1756224210895,0.74205089,109960.0,109950.0,0.2304]
[1756224211115,0.74205089,109960.0,109950.0,0.41230086]
[1756224211343,0.74205089,109960.0,109950.0,0.41751086]
[1756224211554,0.18391202,109960.0,109950.0,0.41751086]
[1756224211779,4.77e-05,109960.0,109950.0,0.41751086]
[1756224212211,0.18391202,109960.0,109950.0,0.41751086]
[1756224212419,0.18391202,109960.0,109950.0,0.41214086]
[1756224212938,0.18391202,109960.0,109950.0,0.41735086]
[1756224213547,0.18391202,109960.0,109950.0,0.07296]
[1756224213772,0.18391202,109960.0,109950.0,0.23024]
[1756224214396,0.70055684,109970.0,109950.0,0.23024]
[1756224214572,0.18247432,109960.0,109950.0,0.23024]
[1756224214785,0.18247432,109960.0,109950.0,0.23332]
[1756224215151,0.18247432,109960.0,109950.0,0.22724]
[1756224215643,0.18247432,109960.0,109950.0,0.23245]
[1756224215853,0.18247432,109960.0,109950.0,0.07517]
[1756224216058,0.18247432,109960.0,109950.0,0.23241]
[1756224216270,0.18188432,109960.0,109950.0,0.41631086]
[1756224216685,0.14006797,109970.0,109960.0,0.18188432]
[1756224216898,0.16801547,109970.0,109960.0,0.18728432]
[1756224217111,0.16860547,109970.0,109960.0,0.18512432]
[1756224217304,0.16860547,109970.0,109960.0,0.18728432]
[1756224217513,0.16801547,109970.0,109960.0,0.18728432]
[1756224217720,0.16801547,109970.0,109960.0,0.0054]
[1756224217926,0.20981528,109970.0,109960.0,0.18728432]
[1756224218137,0.21525437,109990.0,109970.0,0.18186778]
[1756224218351,0.21525437,109990.0,109980.0,0.34449124]
[1756224218352,0.24673977,109990.0,109980.0,0.34449124]
[1756224218561,0.21030604,109990.0,109980.0,0.34449124]
[1756224218774,0.22702867,109990.0,109980.0,0.34449124]
[1756224219385,0.78516754,109990.0,109980.0,0.34449124]
[1756224219596,0.78716754,109990.0,109980.0,0.34449124]
[1756224220661,0.78775754,109990.0,109980.0,0.16264]
[1756224220833,0.78775754,109990.0,109980.0,0.15724]
[1756224220834,0.78575754,109990.0,109980.0,0.15724]
[1756224221240,0.78875754,109990.0,109980.0,0.15724]
[1756224221638,0.22861867,109990.0,109980.0,0.15724]
[1756224221840,0.78675754,109990.0,109980.0,0.15724]
[1756224222175,0.78775754,109990.0,109980.0,0.15724]
[1756224222719,0.7877575,109990.0,109980.0,0.15724]
[1756224224604,0.7792987,109990.0,109980.0,0.15724]
[1756224224816,0.78775845,109990.0,109980.0,0.15724]
[1756224225444,0.18185124,109980.0,109970.0,0.09470202]
[1756224225682,0.18185124,109980.0,109970.0,0.4359698]
[1756224225873,0.73999011,109980.0,109970.0,0.4359698]
[1756224226084,0.18185124,109980.0,109970.0,0.4359698]
[1756224226199,0.75921948,109990.0,109970.0,0.4359698]
[1756224226399,0.78718042,109990.0,109980.0,0.00324]
[1756224226640,0.78718042,109990.0,109980.0,0.18952438]
[1756224226865,0.78718042,109990.0,109980.0,0.18725124]
[1756224227204,0.22904155,109990.0,109980.0,0.0054]
[1756224227410,0.78718042,109990.0,109980.0,0.18952438]
[1756224227612,0.78618042,109990.0,109980.0,0.0054]
[1756224227822,0.78518042,109990.0,109980.0,0.00767314]
[1756224228322,0.76845779,109990.0,109980.0,0.18952438]
[1756224228523,0.76845779,109990.0,109980.0,0.0054]
[1756224228729,0.76945779,109990.0,109980.0,0.00767314]
[1756224229156,0.21231892,109990.0,109980.0,0.18952438]
[1756224229365,0.20385617,109990.0,109980.0,0.18725124]
[1756224229572,0.20385617,109990.0,109980.0,0.0054]
[1756224229799,0.20385617,109990.0,109980.0,0.00767314]
[1756224230020,0.21231942,109990.0,109980.0,0.00767314]
[1756224230248,0.20444617,109990.0,109980.0,0.00767314]
[1756224230473,0.20385617,109990.0,109980.0,0.00767314]
[1756224230714,0.76199504,109990.0,109980.0,0.00767314]
[1756224231327,0.76199504,109990.0,109980.0,0.18952438]
[1756224231531,0.76199504,109990.0,109980.0,0.0054]
[1756224231735,0.76199504,109990.0,109980.0,0.00767314]
[1756224233224,0.20385617,109990.0,109980.0,0.00767314]
[1756224233435,0.76199504,109990.0,109980.0,0.00767314]
[1756224233639,0.74249685,109990.0,109980.0,0.00767314]
[1756224233842,0.18435798,109990.0,109980.0,0.00767314]
[1756224234053,0.74249685,109990.0,109980.0,0.00767314]
[1756224234490,0.74308685,109990.0,109980.0,0.16487314]
[1756224234700,0.74249685,109990.0,109980.0,0.16487314]
[1756224236269,0.18435798,109990.0,109980.0,0.16487314]
[1756224236503,0.00247717,109990.0,109980.0,0.4381864]
[1756224236725,0.18431188,109990.0,109980.0,0.43591326]
[1756224236965,0.00247717,109990.0,109980.0,0.43591326]
[1756224237641,0.18431188,109990.0,109980.0,0.43591326]
[1756224237871,0.00047717,109990.0,109980.0,0.43591326]
[1756224238374,0.18331188,109990.0,109980.0,0.43591326]
[1756224238625,0.00147717,109990.0,109980.0,0.43591326]
[1756224238857,0.00047717,109990.0,109980.0,0.43591326]
[1756224239289,0.18231188,109990.0,109980.0,0.27871326]
[1756224239518,0.18231188,109990.0,109980.0,0.43603326]
[1756224239737,0.00047717,109990.0,109980.0,0.43603326]
[1756224240149,0.18231188,109990.0,109980.0,0.43603326]
[1756224240568,0.18231188,109990.0,109980.0,0.27871326]
[1756224240775,0.18231188,109990.0,109980.0,0.43611326]
[1756224241831,0.18290188,109990.0,109980.0,0.16272]
[1756224242257,0.74104075,109990.0,109980.0,0.16272]
[1756224242487,0.74104075,109990.0,109980.0,0.0054]
[1756224242700,0.18185124,109980.0,109970.0,0.00324]
[1756224242902,0.73999011,109980.0,109970.0,0.00324]
[1756224243117,0.18186778,109970.0,109960.0,0.44972432]
[1756224243318,0.74000665,109970.0,109960.0,0.69846634]
[1756224243529,0.18186778,109970.0,109960.0,0.74253787]
[1756224243735,0.74000665,109970.0,109960.0,0.74253787]
[1756224243939,0.18186778,109970.0,109960.0,0.74253787]
[1756224244148,0.74000665,109970.0,109960.0,0.74553787]
[1756224245188,0.74059665,109970.0,109960.0,0.005]
[1756224245410,0.74059665,109970.0,109960.0,0.16224]
[1756224245668,0.74059665,109970.0,109960.0,0.005]
[1756224245865,0.74059665,109970.0,109960.0,0.1622]
[1756224246275,0.74059665,109970.0,109960.0,0.005]
[1756224246472,0.74059665,109970.0,109960.0,0.1622]
[1756224246909,0.18186778,109970.0,109960.0,0.16242]
[1756224247134,0.74059665,109970.0,109960.0,0.16242]
[1756224247529,0.74059665,109970.0,109960.0,0.1572]
[1756224248000,0.79854214,109970.0,109960.0,0.1572]
[1756224248422,0.18188432,109960.0,109950.0,0.06996]
[1756224248616,0.74061319,109960.0,109950.0,0.06996]
[1756224248824,1.29875206,109960.0,109950.0,0.1572]
[1756224249026,1.29875206,109960.0,109930.0,0.1455996]
[1756224249027,0.1819174,109940.0,109930.0,0.1455996]
[1756224249230,0.74005627,109940.0,109930.0,0.39636162]
[1756224250468,0.74005627,109940.0,109930.0,0.39640932]
[1756224251026,0.74005627,109940.0,109930.0,0.57834327]
[1756224251378,0.74005627,109940.0,109930.0,0.39940932]
[1756224251784,0.74064627,109940.0,109930.0,0.32688972]
[1756224252207,0.74064627,109940.0,109930.0,0.0729677]
[1756224252431,0.74064627,109940.0,109930.0,0.1602477]
[1756224253052,0.89821627,109940.0,109930.0,0.0030477]
[1756224253228,0.92557027,109940.0,109930.0,0.0030477]
[1756224253484,0.92524027,109940.0,109930.0,0.0030477]
[1756224253703,0.92524027,109940.0,109930.0,0.0020477]
[1756224253887,0.92524027,109940.0,109930.0,4.77e-05]
[1756224254046,0.76900027,109940.0,109930.0,4.77e-05]
[1756224254243,0.92724027,109940.0,109930.0,4.77e-05]
[1756224255587,0.92720027,109940.0,109930.0,4.77e-05]
[1756224255806,0.77000027,109940.0,109930.0,4.77e-05]
[1756224256004,0.76941027,109940.0,109930.0,4.77e-05]
[1756224256209,0.92661027,109940.0,109930.0,0.0052677]
[1756224256391,0.92720027,109940.0,109930.0,0.0052677]
[1756224256592,0.77000027,109940.0,109930.0,0.0052677]
[1756224256799,0.92720027,109940.0,109930.0,0.0052677]
[1756224257196,0.3684714,109940.0,109930.0,0.0052677]
[1756224257422,0.92720027,109940.0,109930.0,0.0052677]
[1756224257681,0.76941027,109940.0,109930.0,0.0052677]
[1756224258047,0.77000027,109940.0,109930.0,0.0052677]
[1756224258437,0.77000027,109940.0,109930.0,0.0032077]
[1756224258642,0.77000027,109940.0,109930.0,4.77e-05]
[1756224258888,0.77000027,109940.0,109930.0,0.0052677]
[1756224260723,0.77000027,109940.0,109930.0,0.0032077]
[1756224260966,0.77000027,109940.0,109930.0,0.0052677]
[1756224261381,0.029354,109940.0,109930.0,0.18720165]
[1756224261616,0.002,109940.0,109930.0,0.25972125]
[1756224261739,0.002,109940.0,109930.0,0.35118327]
[1756224262386,0.001,109940.0,109930.0,0.35118327]
[1756224262618,0.001,109940.0,109930.0,0.50846327]
[1756224262756,0.74004142,109950.0,109930.0,0.50846327]
[1756224262955,0.74004142,109950.0,109940.0,0.00316]
[1756224263152,0.74004142,109950.0,109940.0,0.00522]
[1756224263561,0.74063142,109950.0,109940.0,0.00522]
[1756224263766,0.74063142,109950.0,109940.0,0.16246]
[1756224265511,0.74004142,109950.0,109940.0,0.16246]
[1756224266263,0.74004142,109950.0,109940.0,0.3443774]
[1756224266671,0.74004142,109950.0,109940.0,0.16246]
[1756224267097,0.74004142,109950.0,109940.0,0.3443774]
[1756224267301,0.74004142,109950.0,109940.0,0.16246]
[1756224268071,0.74004142,109950.0,109940.0,0.3443774]
[1756224268499,0.74004142,109950.0,109940.0,0.16246]
[1756224268952,0.74004142,109950.0,109940.0,0.00522]
[1756224269157,0.74004142,109950.0,109940.0,0.16246]
[1756224270865,0.76739142,109950.0,109940.0,0.16246]
[1756224274174,0.78683937,109950.0,109940.0,0.16246]
[1756224274582,0.78683937,109950.0,109940.0,0.16473396]
[1756224275320,0.78683937,109950.0,109940.0,0.34665136]
[1756224275528,0.78683937,109950.0,109940.0,0.3443774]
[1756224275849,0.78683937,109950.0,109940.0,0.16246]
[1756224276032,0.78683937,109950.0,109940.0,0.16473396]
[1756224276870,0.78683937,109950.0,109940.0,0.34665136]
[1756224277070,0.78683937,109950.0,109940.0,0.3443774]
[1756224277282,0.78683937,109950.0,109940.0,0.16246]
[1756224277455,0.78683937,109950.0,109940.0,0.16473396]
[1756224278996,0.78742937,109950.0,109940.0,0.16036]
[1756224279207,0.78742937,109950.0,109940.0,0.16241]
[1756224279422,0.78683937,109950.0,109940.0,0.16241]
[1756224279797,0.78742937,109950.0,109940.0,0.16241]
[1756224282779,0.54151389,109950.0,109940.0,0.16241]
[1756224282984,0.56886389,109950.0,109940.0,0.16241]
[1756224283183,0.75076644,109950.0,109940.0,0.16241]
[1756224284217,0.75076644,109950.0,109940.0,0.16468396]
[1756224284615,0.75135644,109950.0,109940.0,0.16468396]
[1756224285020,0.75135644,109950.0,109940.0,0.16241]
[1756224286228,0.75076644,109950.0,109940.0,0.16468396]
[1756224286633,0.18190086,109950.0,109940.0,0.3443274]
[1756224288442,0.79152634,109960.0,109940.0,0.3443274]
[1756224288803,0.23338747,109960.0,109950.0,0.18502086]
[1756224289007,0.22429326,109960.0,109950.0,0.18707086]
[1756224289191,0.78243213,109960.0,109950.0,0.18707086]